bitfinex/quotes_SOLUSD_20240829
["timestamp","ask_amount","ask_price","bid_price","bid_amount"]
[1724902620299,13.06965428,144.37,144.33,6.9284]
[1724902620822,13.06965428,144.37,144.34,6.9279]
[1724902625729,20.0,144.38,144.35,6.9275]
[1724902629514,26.9261,144.38,144.34,6.928]
[1724902629816,0.12549,144.37,144.34,6.928]
[1724902630016,20.0,144.38,144.35,6.9275]
[1724902633262,20.0,144.38,144.36,6.9271]
[1724902633642,7.57742773,144.41,144.32,12.94416428]
[1724902633643,12.94416428,144.41,144.32,12.94416428]
[1724902633832,20.0,144.4,144.33,16.1371]
[1724902634026,20.0,144.4,144.38,6.9257]
[1724902635355,16.1007,144.43,144.39,6.9256]
[1724902635528,16.1007,144.43,144.38,6.926]
[1724902635529,33.19514428,144.42,144.38,6.926]
[1724902649161,33.19514428,144.42,144.38,5.426]
[1724902653263,40.11934428,144.42,144.38,5.426]
[1724902654850,40.11934428,144.42,144.36,6.9267]
[1724902654851,12.94416428,144.4,144.36,6.9267]
[1724902655549,6.9258,144.39,144.34,6.9277]
[1724902655859,0.12549,144.38,144.35,6.9273]
[1724902656064,0.25098,144.39,144.35,6.9273]
[1724902657462,20.25098,144.39,144.35,6.9273]
[1724902668170,12.94416428,144.38,144.34,6.9277]
[1724902668341,0.12549,144.37,144.34,6.9277]
[1724902670471,12.94416428,144.38,144.34,6.9277]
[1724902673875,0.12549,144.37,144.34,6.9277]
[1724902674079,12.94416428,144.36,144.34,6.9277]
[1724902677478,12.94416428,144.36,144.34,6.90725806]
[1724902684699,20.0,144.39,144.29,28.31516428]
[1724902684984,7.57742773,144.4,144.38,6.9257]
[1724902685662,12.94416428,144.41,144.38,6.9257]
[1724902686263,20.0,144.4,144.38,6.9257]
[1724902693572,20.0,144.4,144.37,6.9262]
[1724902693573,12.94416428,144.39,144.37,6.9262]
[1724902702499,6.9266,144.37,144.33,6.9284]
[1724902702688,13.06965428,144.36,144.33,6.9284]
[1724902708491,26.9263,144.38,144.34,6.928]
[1724902708691,12.94416428,144.37,144.34,6.928]
[1724902712602,1.2075857,144.41,144.38,6.9258]
[1724902712782,72.5618,144.48,144.39,1.38386445]
[1724902712984,12.94416428,144.44,144.41,6.9246]
[1724902714586,6.9227,144.46,144.38,15.9443]
[1724902714587,19.86686428,144.46,144.42,6.9241]
[1724902715381,20.0,144.45,144.42,6.9241]
[1724902716199,6.9243,144.42,144.37,6.9264]
[1724902716409,12.94416428,144.4,144.34,15.9948]
[1724902716581,19.86936428,144.4,144.36,6.9271]
[1724902722286,12.94416428,144.4,144.37,6.9265]
[1724902723501,6.9258,144.39,144.34,15.9948]
[1724902723704,39.99585428,144.38,144.34,6.9277]
[1724902723890,19.87036428,144.38,144.34,6.9277]
[1724902724586,12.94416428,144.38,144.34,6.9277]
[1724902725419,7.05129,144.39,144.31,22.5292]
[1724902725420,6.9253,144.4,144.35,6.9275]
[1724902725707,20.0,144.39,144.35,6.9275]
[1724902727813,20.0,144.39,144.37,6.9266]
[1724902727996,20.0,144.41,144.37,6.9266]
[1724902728204,26.9247,144.41,144.37,6.9266]
[1724902730099,12.94416428,144.4,144.37,6.9266]
[1724902730296,20.0,144.39,144.37,6.9266]
[1724902730504,20.0,144.39,144.36,6.9269]
[1724902732313,20.0,144.4,144.36,6.9269]
[1724902733893,20.0,144.4,144.37,6.9264]
[1724902736213,20.0,144.4,144.38,6.926]
[1724902737719,19.86796428,144.43,144.39,6.9256]
[1724902738693,6.9244,144.42,144.38,6.926]
[1724902738912,12.94416428,144.39,144.36,16.4315]
[1724902739911,20.0,144.41,144.36,16.4315]
[1724902740108,20.0,144.42,144.36,16.4315]
[1724902740618,20.0,144.42,144.36,22.7561]
[1724902740999,19.86726428,144.45,144.41,6.9247]
[1724902741193,20.0,144.44,144.41,6.9247]
[1724902743621,20.0,144.45,144.41,6.9247]
[1724902744010,26.9229,144.45,144.41,6.9247]
[1724902744218,12.94416428,144.44,144.4,6.9248]
[1724902744924,20.0,144.43,144.4,6.9248]
[1724902745801,20.0,144.43,144.39,6.9255]
[1724902746105,12.94416428,144.42,144.39,6.9255]
[1724902748610,6.9247,144.41,144.37,6.9266]
[1724902748921,6.9247,144.41,144.36,22.7561]
[1724902748922,33.06965428,144.4,144.32,22.2243]
[1724902750313,39.99485428,144.4,144.36,6.927]
[1724902753318,12.94416428,144.38,144.32,22.2243]
[1724902753824,12.94416428,144.38,144.35,6.9274]
[1724902754010,6.9258,144.39,144.35,6.9274]
[1724902754329,26.9253,144.4,144.36,6.9269]
[1724902755931,20.0,144.4,144.37,6.9264]
[1724902759730,19.99535428,144.39,144.35,6.9275]
[1724902763037,0.12549,144.38,144.35,6.9275]
[1724902763210,12.94416428,144.37,144.35,6.9275]
[1724902764511,12.94416428,144.37,144.32,15.8042]
[1724902765616,12.94416428,144.37,144.34,6.9277]
[1724902767527,12.94416428,144.37,144.35,6.9276]
[1724902768532,19.99545428,144.39,144.35,6.9276]
[1724902769327,7.05129,144.39,144.35,6.9276]
[1724902769620,27.05079,144.4,144.36,6.927]
[1724902770331,39.99495428,144.4,144.36,6.927]
[1724902773938,7.05119,144.39,144.35,6.9275]
[1724902774734,12.94416428,144.38,144.35,6.9275]
[1724902775820,12.94416428,144.36,144.31,0.06900888]
[1724902776235,45.12549,144.35,144.31,6.9294]
[1724902776541,0.12549,144.34,144.31,6.9294]
[1724902778943,13.06965428,144.34,144.31,6.9294]
[1724902779148,13.06965428,144.34,144.26,16.4413]
[1724902780941,13.06965428,144.34,144.3,6.9299]
[1724902782462,13.06965428,144.34,144.05,272.33911988]
[1724902782463,12.94416428,144.31,144.22,6.9338]
[1724902782753,6.9339,144.22,144.16,6.9365]
[1724902782928,39.87866428,144.21,144.16,6.9365]
[1724902783251,12.94416428,144.19,144.16,6.9365]
[1724902783840,12.94416428,144.19,144.13,21.5872]
[1724902784131,59.35740121,144.21,144.15,6.9368]
[1724902784333,0.25098,144.2,144.15,6.9368]
[1724902785154,0.25098,144.2,144.16,6.9366]
[1724902785637,32.42290121,144.19,144.1,15.3346]
[1724902785828,20.0,144.18,144.1,15.3346]
[1724902786947,20.0,144.18,144.14,6.9376]
[1724902787251,20.0,144.19,144.14,6.9376]
[1724902789845,20.0,144.19,144.1,15.3346]
[1724902790050,6.9344,144.21,144.11,77.42290121]
[1724902791133,6.9344,144.21,144.18,0.06900888]
[1724902791351,20.0,144.2,144.18,0.06900888]
[1724902792231,26.9348,144.2,144.18,0.06900888]
[1724902794573,20.0,144.2,144.18,0.06900888]
[1724902795833,20.0,144.2,144.18,7.00470888]
[1724902796048,0.12549,144.22,144.18,0.06900888]
[1724902796049,6.9343,144.21,144.18,0.06900888]
[1724902796247,20.12549,144.2,144.18,0.06900888]
[1724902799767,20.0,144.2,144.18,0.06900888]
[1724902799937,20.0,144.21,144.18,0.06900888]
[1724902801355,26.9343,144.21,144.18,0.06900888]
[1724902801536,20.0,144.21,144.18,0.06900888]
[1724902802561,26.9344,144.21,144.18,0.06900888]
[1724902811876,1.20895761,144.23,144.18,0.06900888]
[1724902812055,19.89886039,144.24,144.18,0.06900888]
[1724902812262,19.89886039,144.24,144.19,6.9352]
[1724902813476,20.0,144.23,144.19,6.9352]
[1724902814088,20.0,144.23,144.2,6.9348]
[1724902818478,6.9324,144.25,144.21,6.9343]
[1724902818679,6.932,144.26,144.22,6.9336]
[1724902820179,19.89746039,144.27,144.23,6.9333]
[1724902821476,20.0,144.26,144.23,6.9333]
[1724902824284,20.0,144.26,144.22,6.9337]
[1724902824483,26.932,144.26,144.22,6.9337]
[1724902826385,12.96596039,144.25,144.22,6.9337]
[1724902826582,20.0,144.24,144.21,6.9342]
[1724902828963,12.96596039,144.23,144.18,0.06900888]
[1724902829384,20.0,144.22,144.18,7.00430888]
[1724902831697,12.96596039,144.21,144.18,0.06900888]
[1724902832693,12.96596039,144.19,144.18,0.06900888]
[1724902833194,20.0,144.22,144.18,0.06900888]
[1724902833397,13.09145039,144.23,144.18,0.06900888]
[1724902833697,20.0,144.22,144.18,0.06900888]
[1724902834272,26.9338,144.22,144.18,7.00430888]
[1724902834501,26.9338,144.22,144.18,6.9353]
[1724902840484,20.0,144.22,144.18,6.9353]
[1724902841807,20.0,144.22,144.17,15.1719]
[1724902841808,13.09145039,144.21,144.17,6.9361]
[1724902841982,0.12549,144.2,144.17,6.9361]
[1724902843424,6.9356,144.19,144.13,15.8936]
[1724902843799,20.0,144.18,144.15,6.9372]
[1724902844196,20.0,144.18,144.13,15.8936]
[1724902844197,39.90186039,144.18,144.14,6.9375]
[1724902844397,7.06179,144.17,144.13,22.8316]
[1724902844692,12.96596039,144.16,144.11,6.2798]
[1724902844891,19.90276039,144.16,144.11,6.9386]
[1724902845116,12.96596039,144.14,144.09,15.9083]
[1724902845317,19.90376039,144.14,144.09,15.9083]
[1724902845497,0.25098,144.13,144.09,15.9083]
[1724902846716,7.18918,144.13,144.06,2.98815789]
[1724902846904,0.25098,144.13,144.06,2.98815789]
[1724902847416,0.25098,144.13,144.05,15.6358]
[1724902847620,0.25098,144.13,144.06,2.988707]
[1724902848432,0.25098,144.13,144.1,6.9396]
[1724902850019,0.25098,144.13,144.11,0.06900888]
[1724902850602,0.25098,144.13,144.1,6.9396]
[1724902853813,6.9372,144.15,144.11,6.939]
[1724902854001,20.0,144.14,144.11,6.939]
[1724902861534,20.0,144.14,144.09,12.96596039]
[1724902861706,7.61980779,144.18,144.09,12.96596039]
[1724902861707,20.0,144.17,144.14,6.9376]
[1724902867335,12.96596039,144.16,144.13,6.938]
[1724902867629,20.02815039,144.16,144.12,6.9385]
[1724902867817,45.12549,144.15,144.12,6.9385]
[1724902868021,0.12549,144.14,144.12,6.9385]
[1724902875613,0.12549,144.14,144.1,6.9392]
[1724902875817,33.09145039,144.14,144.1,6.9392]
[1724902876425,0.12549,144.13,144.1,6.9392]
[1724902878137,12.96596039,144.12,144.09,6.94]
[1724902878341,0.25098,144.11,144.09,6.94]
[1724902878629,0.25098,144.11,144.08,6.9404]
[1724902880128,0.25098,144.11,144.09,6.94]
[1724902888639,39.90396039,144.14,144.09,6.94]
[1724902888831,45.25098,144.13,144.09,6.94]
[1724902889034,20.0,144.12,144.09,6.94]
[1724902891446,20.0,144.12,144.1,6.9395]
[1724902892441,1.20969955,144.15,144.07,12.96596039]
[1724902892642,6.2017,144.16,144.12,6.9382]
[1724902892842,20.0,144.15,144.12,6.9382]
[1724902893551,20.0,144.16,144.12,6.9382]
[1724902893927,0.12549,144.15,144.12,6.9382]
[1724902894135,0.25098,144.15,144.11,6.9389]
[1724902894627,45.25098,144.15,144.13,6.938]
[1724902894826,20.0,144.14,144.12,6.9385]
[1724902896027,45.25098,144.15,144.13,6.9381]
[1724902896028,0.25098,144.15,144.13,6.9381]
[1724902896343,6.9359,144.18,144.11,0.06900888]
[1724902897334,396.5359,144.18,144.14,6.9376]
[1724902897741,45.12549,144.17,144.14,6.9376]
[1724902898056,0.12549,144.16,144.14,6.9376]
[1724902898762,0.12549,144.16,144.11,0.06900888]
[1724902898935,27.06219,144.16,144.11,7.00770888]
[1724902899130,0.12549,144.15,144.11,7.00770888]
[1724902899336,0.12549,144.15,144.12,6.9383]
[1724902901057,0.12549,144.15,144.13,6.938]
[1724902901239,20.12549,144.16,144.13,6.938]
[1724902911757,20.12549,144.16,144.13,6.438]
[1724902915565,0.12549,144.15,144.13,6.438]
[1724902916654,0.12549,144.15,144.12,6.9385]
[1724902920275,0.12549,144.15,144.11,0.06900888]
[1724902920276,19.90446039,144.13,144.11,0.06900888]
[1724902920578,65.25098,144.12,144.11,0.06900888]
[1724902920982,72.18958,144.12,144.11,0.06900888]
[1724902926576,122.18958,144.12,144.11,0.06900888]
[1724902931981,50.0,144.08,144.02,16.2691]
[1724902932185,12.96596039,144.06,144.02,23.2125]
[1724902932396,0.25098,144.05,144.02,23.2125]
[1724902932696,0.25098,144.05,144.02,16.2691]
[1724902932697,45.25098,144.05,144.02,16.2691]
[1724902932876,45.25098,144.05,143.97,12.96596039]
[1724902932877,52.19298,144.05,143.99,15.3417]
[1724902933082,20.0,144.04,144.0,6.9443]
[1724902933275,0.25098,144.03,144.0,6.9443]
[1724902934501,0.25098,144.03,144.01,6.9439]
[1724902935588,0.25098,144.03,144.0,6.9442]
[1724902938113,20.0,144.04,144.02,6.943]
[1724902938290,20.0,144.06,144.03,6.9429]
[1724902939779,20.0,144.06,144.04,6.9423]
[1724902939987,20.0,144.07,144.04,6.9423]
[1724902941316,20.0,144.07,144.03,6.9428]
[1724902941813,0.12549,144.06,144.03,6.9428]
[1724902942414,0.25098,144.06,144.03,6.9428]
[1724902943604,1.20907346,144.1,144.02,19.49606039]
[1724902943801,50.0,144.12,144.07,6.9407]
[1724902943802,6.9389,144.12,144.07,6.9407]
[1724902944197,42.06286039,144.13,144.08,6.9405]
[1724902944396,29.0969,144.13,144.08,6.9405]
[1724902944622,42.06286039,144.13,144.08,6.9405]
[1724902945419,0.12549,144.12,144.08,6.9405]
[1724902945621,45.25098,144.12,144.08,6.9405]
[1724902945922,20.0,144.11,144.08,6.9405]
[1724902947001,20.0,144.11,144.07,6.9409]
[1724902953528,20.0,144.11,144.06,12.96596039]
[1724902953735,0.25098,144.12,144.06,12.96596039]
[1724902955137,0.25098,144.12,144.09,6.9397]
[1724902955323,20.25098,144.13,144.09,6.9397]
[1724902956517,20.25098,144.13,144.03,15.6085]
[1724902956518,27.18938,144.13,144.08,6.9404]
[1724902956720,45.0,144.12,144.08,6.9404]
[1724902957019,0.25098,144.11,144.08,6.9404]
[1724902959206,0.25098,144.11,144.04,12.96596039]
[1724902959405,0.25098,144.11,144.07,6.9407]
[1724902960540,0.25098,144.11,144.08,6.9405]
[1724902960745,26.9383,144.13,144.08,6.9405]
[1724902961038,0.25098,144.12,144.08,6.9405]
[1724902967540,0.25098,144.12,144.09,6.94]
[1724902976340,7.18968,144.12,144.08,6.9404]
[1724902982644,0.25098,144.12,144.08,6.9404]
[1724902982967,45.25098,144.12,144.08,6.9404]
[1724902991250,52.18978,144.12,144.07,6.9408]
[1724902991455,20.0,144.11,144.07,6.9408]
[1724902991773,45.25098,144.1,144.07,6.9408]
[1724903000275,52.19058,144.1,144.06,6.9412]
[1724903001172,45.25098,144.1,144.07,6.941]
[1724903003382,6.9401,144.09,144.05,6.9419]
[1724903003585,45.25098,144.1,144.04,12.96596039]
[1724903003767,45.25098,144.1,144.07,6.9407]
[1724903003963,45.25098,144.1,144.06,6.9413]
[1724903005265,45.25098,144.1,144.06,6.9414]
[1724903005580,52.19068,144.1,144.06,6.9414]
[1724903009265,6.9401,144.09,144.05,6.9419]
[1724903009475,0.25098,144.08,144.05,6.9419]
[1724903009761,0.12549,144.07,144.05,6.9419]
[1724903010582,0.12549,144.07,143.99,15.5496]
[1724903010761,0.12549,144.07,143.99,28.51556039]
[1724903012086,0.12549,144.07,144.01,12.96596039]
[1724903012274,0.12549,144.07,143.99,15.5496]
[1724903012480,27.06669,144.07,144.03,6.9428]
[1724903012680,45.12549,144.06,144.03,6.9428]
[1724903019296,45.12549,144.06,144.03,6.75387961]
[1724903020588,20.0,144.07,144.01,12.96596039]
[1724903020773,20.0,144.08,144.01,12.96596039]
[1724903021791,20.0,144.08,144.05,6.9417]
[1724903022005,0.12549,144.07,144.04,6.9423]
[1724903022183,0.25098,144.07,144.04,6.9423]
[1724903031413,0.25098,144.07,144.05,6.942]
[1724903031591,20.0,144.08,144.05,6.942]
[1724903031906,20.0,144.07,144.05,6.942]
[1724903032090,20.12549,144.09,144.05,6.942]
[1724903032291,0.12549,144.08,144.05,6.942]
[1724903032495,0.12549,144.08,144.03,12.96596039]
[1724903032693,0.12549,144.09,144.06,6.9414]
[1724903032900,0.25098,144.09,144.06,6.9414]
[1724903034593,20.25098,144.09,144.06,6.9414]
[1724903040414,27.19118,144.09,144.05,6.9419]
[1724903042214,20.25098,144.09,144.06,6.9414]
[1724903043711,45.0,144.08,144.05,6.942]
[1724903043897,0.25098,144.07,144.05,6.942]
[1724903047631,0.25098,144.07,144.02,12.96596039]
[1724903047632,0.12549,144.07,144.06,6.9415]
[1724903052226,20.0,144.09,144.06,6.9415]
[1724903065337,52.19158,144.08,144.04,6.9421]
[1724903065748,26.9413,144.07,144.03,6.9428]
[1724903066044,0.12549,144.06,144.03,6.9428]
[1724903066218,45.25098,144.06,144.03,6.9428]
[1724903067943,45.25098,144.06,143.99,15.5249]
[1724903068248,52.19268,144.06,144.02,6.9431]
[1724903068545,45.25098,144.06,144.02,6.9431]
[1724903069128,45.25098,144.06,144.03,6.9428]
[1724903070742,52.19278,144.06,143.99,15.5249]
[1724903070940,19.90876039,144.04,143.99,6.9445]
[1724903071135,45.25098,144.03,143.99,6.9445]
[1724903072366,52.19398,144.03,143.99,6.9445]
[1724903073226,52.19398,144.03,143.98,6.9453]
[1724903073543,20.0,144.02,143.98,6.9453]
[1724903073752,0.25098,144.01,143.98,6.9453]
[1724903075652,0.25098,144.01,143.96,15.5249]
[1724903075950,0.25098,144.01,143.98,6.9452]
[1724903078640,0.25098,144.01,143.99,6.9449]
[1724903086958,45.25098,144.01,143.98,6.9452]
[1724903088045,45.25098,144.01,143.99,6.9448]
[1724903088241,20.0,144.02,143.99,6.9448]
[1724903088441,20.0,144.02,144.0,6.9443]
[1724903088756,20.12549,144.03,144.0,6.9443]
[1724903088955,0.12549,144.02,144.0,6.9443]
[1724903097767,45.25098,144.02,144.0,6.9443]
[1724903099951,20.0,144.03,144.01,6.9435]
[1724903100150,78.65366039,144.06,144.01,6.9435]
[1724903100151,20.0,144.05,144.01,6.9435]
[1724903101246,26.942,144.05,144.01,6.9435]
[1724903101969,45.25098,144.04,144.01,6.9435]
[1724903102152,20.0,144.03,144.01,6.9435]
[1724903105061,45.25098,144.04,144.01,6.9435]
[1724903112070,45.25098,144.04,144.03,6.9429]
[1724903112376,6.9412,144.07,144.03,6.9429]
[1724903112557,17.65898122,144.09,144.04,6.9424]
[1724903112756,455.5694,144.1,144.04,6.9424]
[1724903112980,6.9404,144.09,144.04,6.9424]
[1724903113956,45.0,144.08,144.04,6.9424]
[1724903114159,45.0,144.08,144.05,6.9417]
[1724903114487,20.0,144.07,144.05,6.9417]
[1724903114857,0.12549,144.06,144.05,6.9417]
[1724903115377,0.12549,144.06,144.04,6.9424]
[1724903116262,20.0,144.07,144.02,15.6985]
[1724903116680,20.0,144.09,144.02,15.6985]
[1724903116982,0.12549,144.08,144.02,15.6985]
[1724903117174,0.12549,144.08,144.06,6.9415]
[1724903117755,45.25098,144.09,144.06,6.9415]
[1724903118081,20.0,144.1,144.07,6.941]
[1724903119479,0.12549,144.09,144.07,6.941]
[1724903121361,20.0,144.1,144.08,6.9405]
[1724903121563,0.12549,144.11,144.08,6.9405]
[1724903121779,6.9386,144.13,144.08,6.9405]
[1724903121780,45.25098,144.12,144.08,6.9405]
[1724903122878,20.0,144.11,144.08,6.9405]
[1724903123082,20.0,144.11,144.06,15.5431]
[1724903123083,20.0,144.11,144.09,6.9401]
[1724903123291,45.25098,144.12,144.09,6.9401]
[1724903123588,45.0,144.13,144.1,6.9394]
[1724903124271,45.0,144.13,144.06,15.5431]
[1724903124272,50.0,144.16,144.12,6.9383]
[1724903124585,56.9371,144.16,144.11,6.939]
[1724903125483,6.9371,144.16,144.12,6.9386]
[1724903125694,20.0,144.15,144.12,6.9386]
[1724903125992,0.12549,144.14,144.12,6.9386]
[1724903126460,20.0,144.15,144.13,6.9381]
[1724903126667,20.0,144.16,144.13,6.9381]
[1724903126985,6.9363,144.17,144.13,6.9381]
[1724903127287,6.9358,144.18,144.13,6.9381]
[1724903127665,45.0,144.17,144.13,6.9381]
[1724903128173,6.9353,144.19,144.11,29.37096039]
[1724903129185,6.9353,144.19,144.15,6.937]
[1724903129388,65.0,144.18,144.15,6.937]
[1724903129966,0.12549,144.17,144.15,6.937]
[1724903130184,0.25098,144.17,144.15,6.937]
[1724903130493,0.25098,144.17,144.11,29.37096039]
[1724903130494,20.0,144.18,144.16,6.9367]
[1724903130790,20.0,144.19,144.16,6.9367]
[1724903131481,20.0,144.19,144.15,6.9371]
[1724903131671,0.12549,144.18,144.15,6.9371]
[1724903133782,0.12549,144.18,144.16,6.9366]
[1724903135395,45.25098,144.19,144.16,6.9366]
[1724903151684,52.18638,144.19,144.15,6.9371]
[1724903157217,52.18638,144.19,144.13,6.553]
[1724903157218,6.937,144.16,144.13,6.553]
[1724903157388,7.06179,144.17,144.13,6.553]
[1724903157588,45.0,144.16,144.13,6.553]
[1724903158509,45.0,144.16,144.13,13.491]
[1724903160015,45.0,144.16,144.13,6.938]
[1724903162114,45.0,144.16,144.12,6.9385]
[1724903162115,0.25098,144.15,144.12,6.9385]
[1724903162612,7.18818,144.15,144.11,23.344]
[1724903162916,6.9382,144.13,144.09,6.9399]
[1724903163309,45.25098,144.12,144.09,6.9399]
[1724903164405,0.25098,144.12,144.09,6.9399]
[1724903166915,0.25098,144.12,144.08,16.1519]
[1724903167418,0.25098,144.12,144.08,23.0921]
[1724903170120,6.9393,144.11,144.08,16.1519]
[1724903170294,0.12549,144.1,144.07,6.9407]
[1724903170495,51.9391,144.11,144.07,6.9407]
[1724903170701,0.25098,144.1,144.07,6.9407]
[1724903172109,0.25098,144.1,144.08,6.9404]
[1724903172317,0.25098,144.1,144.09,6.9401]
[1724903172628,45.0,144.11,144.09,6.9401]
[1724903172798,26.9378,144.14,144.09,6.9401]
[1724903174327,45.25098,144.13,144.09,6.9401]
[1724903174507,20.0,144.12,144.09,6.9401]
[1724903177815,0.25098,144.11,144.09,6.9401]
[1724903178213,45.25098,144.11,144.09,6.9401]
[1724903181425,45.25098,144.11,144.05,29.17776039]
[1724903181426,6.94,144.1,144.06,6.9414]
[1724903181617,45.25098,144.09,144.06,6.9414]
[1724903186229,6.9406,144.08,144.05,16.2118]
[1724903186529,45.25098,144.07,144.04,6.9424]
[1724903186855,6.9423,144.05,144.01,22.8569]
[1724903187146,45.25098,144.04,144.01,22.8569]
[1724903187435,52.19378,144.04,144.0,6.9443]
[1724903188229,6.943,144.03,143.98,6.9449]
[1724903188431,45.12549,144.02,143.99,6.9448]
[1724903188637,0.12549,144.01,143.99,6.9448]
[1724903189955,0.12549,144.02,144.0,6.9444]
[1724903192340,0.12549,144.02,143.99,6.9448]
[1724903192631,45.12549,144.02,143.99,6.9448]
[1724903192829,45.12549,144.02,143.97,15.8806]
[1724903192830,0.12549,144.01,143.97,22.8261]
[1724903193032,62.96596039,144.0,143.93,21.9651]
[1724903193216,0.12549,143.99,143.95,6.9464]
[1724903193424,20.25098,143.99,143.94,6.9472]
[1724903193733,45.0,143.98,143.94,6.9472]
[1724903193933,0.25098,143.97,143.93,22.8283]
[1724903194112,7.19698,143.97,143.93,6.9477]
[1724903194314,45.0,143.96,143.93,6.9477]
[1724903194518,0.25098,143.95,143.9,23.0015]
[1724903194720,0.25098,143.95,143.85,6.4005]
[1724903194920,20.25098,143.95,143.86,12.96596039]
[1724903195138,45.0,143.94,143.86,12.96596039]
[1724903195336,0.25098,143.93,143.86,12.96596039]
[1724903195641,0.25098,143.93,143.85,6.4005]
[1724903195937,0.25098,143.93,143.9,6.9492]
[1724903198140,0.25098,143.93,143.86,12.96596039]
[1724903198141,0.25098,143.93,143.92,6.9483]
[1724903198444,20.0,143.95,143.92,6.9483]
[1724903198624,0.25098,143.94,143.92,6.9483]
[1724903200024,0.25098,143.94,143.93,6.9478]
[1724903200246,20.0,143.97,143.93,6.9478]
[1724903200417,45.25098,143.96,143.93,6.9478]
[1724903200623,45.25098,143.96,143.94,6.9471]
[1724903206342,20.0,143.95,143.88,16.1626]
[1724903206539,20.0,143.97,143.88,16.1626]
[1724903206722,20.0,143.97,143.93,6.9477]
[1724903206723,32.96596039,143.97,143.93,6.9477]
[1724903207745,45.25098,143.96,143.93,6.9477]
[1724903207927,20.0,143.95,143.93,6.9477]
[1724903208846,20.0,143.95,143.88,16.1626]
[1724903208847,20.0,143.95,143.94,6.9473]
[1724903209144,0.12549,143.96,143.95,6.9468]
[1724903209849,20.12549,143.96,143.95,6.9468]
[1724903210230,6.9445,144.0,143.96,6.9463]
[1724903210449,65.0,143.99,143.95,6.9467]
[1724903210828,71.945,143.99,143.95,6.9467]
[1724903211035,84.91096039,143.99,143.95,6.9467]
[1724903211339,134.91096039,143.99,143.94,6.9472]
[1724903211943,0.25098,143.98,143.94,6.9472]
[1724903212546,7.19668,143.98,143.88,16.1626]
[1724903212730,65.0,143.97,143.93,6.9474]
[1724903212929,0.25098,143.96,143.93,6.9474]
[1724903215828,0.25098,143.96,143.9,12.96596039]
[1724903216030,0.12549,143.96,143.9,12.96596039]
[1724903217254,0.12549,143.96,143.95,6.9468]
[1724903226257,6.9445,144.0,143.96,6.9463]
[1724903226434,65.0,143.99,143.96,6.9463]
[1724903227263,65.0,143.99,143.95,6.9466]
[1724903227858,0.25098,143.98,143.95,6.9466]
[1724903230270,0.25098,143.98,143.96,6.9462]
[1724903230441,65.0,143.99,143.94,12.96596039]
[1724903230763,9.99926327,144.02,143.94,12.96596039]
[1724903230944,9.99926327,144.02,143.96,12.96596039]
[1724903231150,9.99926327,144.02,143.99,6.9448]
[1724903232446,45.25098,144.01,143.99,6.9448]
[1724903235441,45.25098,144.01,143.97,6.9454]
[1724903237142,45.14747762,144.01,143.97,6.9454]
[1724903237342,45.12549,144.01,143.97,6.9454]
[1724903241068,45.12549,144.01,143.96,12.96596039]
[1724903241243,0.12549,144.01,143.96,12.96596039]
[1724903241445,0.25098,144.01,143.98,6.9453]
[1724903242653,0.25098,144.01,143.97,6.9457]
[1724903245258,0.25098,144.01,143.96,12.96596039]
[1724903245962,0.25098,144.01,143.79,6.962]
[1724903245963,1.21049718,144.07,144.06,6.9415]
[1724903246150,29.0548,144.18,144.07,6.2041]